lending/lending_fUSD_20250917
["ID","MTS","AMOUNT","RATE_DAILY","PERIOD"]
[385932627,1758137446350,-400.0,0.00022172,2]
[385932629,1758137446360,-400.0,0.00022172,2]
[385932631,1758137446369,-400.0,0.00022172,2]
[385932633,1758137446378,-400.0,0.00022172,2]
[385932635,1758137446388,-415.91,0.00022172,2]
[385932637,1758137446397,-400.0,0.00022172,2]
[385932639,1758137446407,-400.0,0.00022172,2]
[385932641,1758137446417,-400.0,0.00022172,2]
[385932643,1758137446426,-400.0,0.00022172,2]
[385932645,1758137446435,-400.0,0.00022172,2]
[385932647,1758137446445,-400.0,0.00022172,2]
[385932649,1758137446454,-400.0,0.00022172,2]
[385932651,1758137446463,-400.0,0.00022172,2]
[385932653,1758137446473,-400.0,0.00022172,2]
[385932655,1758137446482,-400.0,0.00022172,2]
[385932657,1758137446492,-400.0,0.00022172,2]
[385932659,1758137446501,-400.0,0.00022172,2]
[385932661,1758137446510,-400.0,0.00022172,2]
[385932663,1758137446519,-400.0,0.00022172,2]
[385932665,1758137446529,-400.0,0.00022172,2]
[385932667,1758137446538,-400.0,0.00022172,2]
[385932669,1758137446547,-400.0,0.00022172,2]
[385932671,1758137446557,-400.0,0.00022172,2]
[385932673,1758137446566,-400.0,0.00022172,2]
[385932675,1758137446575,-400.0,0.00022172,2]
[385932677,1758137446584,-400.0,0.00022172,2]
[385932679,1758137446594,-400.0,0.00022172,2]
[385932681,1758137446603,-400.0,0.00022172,2]
[385932683,1758137446612,-400.0,0.00022172,2]
[385932685,1758137446622,-400.0,0.00022172,2]
[385932687,1758137446632,-400.0,0.00022172,2]
[385932689,1758137446641,-400.0,0.00022172,2]
[385932691,1758137446651,-400.0,0.00022172,2]
[385932693,1758137446660,-400.0,0.00022172,2]
[385932695,1758137446670,-400.0,0.00022172,2]
[385932697,1758137446679,-612.38,0.00022172,2]
[385932699,1758137446689,-400.0,0.00022172,2]
[385932701,1758137446698,-431.7,0.00022172,2]
[385932703,1758137446708,-400.0,0.00022172,2]
[385932705,1758137446718,-430.28,0.00022172,2]
[385932707,1758137446727,-400.0,0.00022172,2]
[385932709,1758137446737,-400.0,0.00022172,2]
[385932712,1758137446746,-400.0,0.00022172,2]
[385932715,1758137446755,-400.0,0.00022172,2]
[385932717,1758137446764,-400.0,0.00022172,2]
[385932719,1758137446774,-400.0,0.00022172,2]
[385932721,1758137446783,-400.0,0.00022172,2]
[385932723,1758137446792,-400.0,0.00022172,2]
[385932725,1758137446804,-400.0,0.00022172,2]
[385932727,1758137446815,-400.0,0.00022172,2]
[385932729,1758137446826,-400.0,0.00022172,2]
[385932731,1758137446835,-400.0,0.00022172,2]
[385932733,1758137446844,-400.0,0.00022172,2]
[385932735,1758137446854,-400.0,0.00022172,2]
[385932737,1758137446864,-400.0,0.00022172,2]
[385932740,1758137446874,-400.0,0.00022172,2]
[385932742,1758137446883,-400.0,0.00022172,2]
[385932744,1758137446894,-400.0,0.00022172,2]
[385932746,1758137446904,-159.83504523,0.00022172,2]
[385932747,1758137446913,-400.0,0.00022172,2]
[385932750,1758137446924,-400.0,0.00022172,2]
[385932752,1758137446934,-400.0,0.00022172,2]
[385932754,1758137446944,-441.41,0.00022172,2]
[385932756,1758137446953,-691.27,0.00022172,2]
[385932757,1758137446962,-708.66,0.00022172,2]
[385932758,1758137446971,-400.0,0.00022172,2]
[385932759,1758137446980,-652.09,0.00022172,2]
[385932760,1758137446990,-568.38,0.00022172,2]
[385932761,1758137446999,-400.0,0.00022172,2]
[385932762,1758137447009,-400.0,0.00022172,2]
[385932763,1758137447018,-400.0,0.00022172,2]
[385932765,1758137447027,-421.69,0.00022172,2]
[385932767,1758137447090,-400.0,0.00022172,2]
[385932768,1758137447100,-400.0,0.00022172,2]
[385932769,1758137447109,-400.0,0.00022172,2]
[385932771,1758137447118,-400.0,0.00022172,2]
[385932773,1758137447128,-400.0,0.00022172,2]
[385932775,1758137447138,-400.0,0.00022172,2]
[385932777,1758137447148,-400.0,0.00022172,2]
[385932779,1758137447157,-400.0,0.00022172,2]
[385932781,1758137447167,-1074.46,0.00022172,2]
[385932782,1758137447177,-400.0,0.00022172,2]
[385932783,1758137447186,-418.61,0.00022172,2]
[385932784,1758137447196,-432.49115277,0.00022172,2]
[385932785,1758137447205,-400.0,0.00022172,2]
[385932786,1758137447215,-410.25393167,0.00022172,2]
[385932787,1758137447225,-868.64,0.00022172,2]
[385932788,1758137447234,-400.0,0.00022172,2]
[385932789,1758137447243,-400.0,0.00022172,2]
[385932791,1758137447253,-433.88,0.00022172,2]
[385932793,1758137447262,-467.4,0.00022172,2]
[385932795,1758137447271,-400.0,0.00022172,2]
[385932797,1758137447281,-400.0,0.00022172,2]
[385932799,1758137447293,-1017.1,0.00022172,2]
[385932801,1758137447302,-613.41,0.00022172,2]
[385932803,1758137447311,-400.0,0.00022172,2]
[385932804,1758137447320,-1761.46,0.00022172,2]
[385932805,1758137447330,-480.39,0.00022172,2]
[385932806,1758137447339,-400.0,0.00022172,2]
[385932807,1758137447349,-400.0,0.00022172,2]
[385932808,1758137447359,-400.0,0.00022172,2]
[385932809,1758137447368,-400.0,0.00022172,2]
[385932810,1758137447378,-1821.95,0.00022172,2]
[385932811,1758137447387,-400.0,0.00022172,2]
[385932812,1758137447397,-400.0,0.00022191,2]
[385932813,1758137447406,-400.0,0.00022191,2]
[385932814,1758137447415,-400.0,0.00022191,2]
[385932816,1758137447426,-602.7,0.00022191,2]
[385932818,1758137447435,-400.0,0.00022191,2]
[385932820,1758137447445,-435.38,0.00022191,2]
[385932822,1758137447454,-400.0,0.00022191,2]
[385932824,1758137447463,-400.0,0.00022191,2]
[385932826,1758137447473,-400.0,0.00022191,2]
[385932828,1758137447482,-400.0,0.00022191,2]
[385932830,1758137447491,-400.0,0.00022191,2]
[385932831,1758137447500,-400.0,0.00022191,2]
[385932833,1758137447510,-400.0,0.00022191,2]
[385932835,1758137447519,-3002.02,0.00022191,2]
[385932837,1758137447528,-400.0,0.00022191,2]
[385932839,1758137447537,-400.0,0.00022191,2]
[385932841,1758137447546,-400.0,0.00022191,2]
[385932843,1758137447555,-400.0,0.00022191,2]
[385932845,1758137447565,-400.0,0.00022191,2]
[385932847,1758137447574,-400.0,0.00022191,2]
[385932848,1758137447584,-453.08956097,0.00022191,2]
[385932849,1758137447593,-400.0,0.00022191,2]
[385932850,1758137447602,-400.0,0.00022191,2]
[385932852,1758137447611,-400.0,0.00022191,2]
[385932854,1758137447623,-400.0,0.00022191,2]
[385932856,1758137447634,-400.0,0.00022191,2]
[385932858,1758137447643,-248.97780758,0.00022191,2]
[385932860,1758137447653,-400.0,0.00022191,2]
[385932863,1758137447663,-400.0,0.00022191,2]
[385932865,1758137447674,-400.0,0.00022191,2]
[385932867,1758137447683,-400.0,0.00022191,2]
[385932868,1758137447693,-450.53,0.00022191,2]
[385932870,1758137447702,-400.0,0.00022191,2]
[385932872,1758137447713,-400.0,0.00022191,2]
[385932874,1758137447724,-400.0,0.00022191,2]
[385932876,1758137447733,-400.0,0.00022191,2]
[385932879,1758137447744,-400.0,0.00022191,2]
[385932880,1758137447755,-400.0,0.00022191,2]
[385932882,1758137447766,-400.0,0.00022191,2]
[385932885,1758137447777,-400.0,0.00022191,2]
[385932886,1758137447788,-400.0,0.00022191,2]
[385932888,1758137447797,-400.0,0.00022191,2]
[385932891,1758137447807,-403.85,0.00022191,2]
[385932893,1758137447820,-531.56,0.00022191,2]
[385932895,1758137447829,-747.86,0.00022191,2]
[385932896,1758137447838,-671.74,0.00022191,2]
[385932898,1758137447847,-400.0,0.00022191,2]
[385932900,1758137447857,-400.0,0.00022191,2]
[385932902,1758137447866,-400.0,0.00022191,2]
[385932904,1758137447876,-400.0,0.00022191,2]
[385932907,1758137447885,-400.0,0.00022191,2]
[385932909,1758137447894,-400.0,0.00022191,2]
[385932911,1758137447903,-3263.67,0.00022191,2]
[385932913,1758137447913,-400.0,0.00022191,2]
[385932915,1758137447922,-493.88,0.00022191,2]
[385932917,1758137447932,-568.43,0.00022191,2]
[385932919,1758137447941,-400.0,0.00022191,2]
[385932921,1758137447950,-400.0,0.00022191,2]
[385932923,1758137447960,-454.87,0.00022191,2]
[385932925,1758137447969,-400.0,0.00022191,2]
[385932927,1758137447979,-427.05,0.00022191,2]
[385932929,1758137447988,-400.0,0.00022191,2]
[385932931,1758137447997,-400.0,0.00022191,2]
[385932933,1758137448006,-688.11,0.00022191,2]
[385932935,1758137448015,-461.23,0.00022191,2]
[385932937,1758137448025,-400.0,0.00022191,2]
[385932939,1758137448034,-400.0,0.00022191,2]
[385932941,1758137448044,-445.65,0.00022191,2]
[385932943,1758137448054,-569.96,0.00022191,2]
[385932945,1758137448063,-441.98,0.00022191,2]
[385932947,1758137448073,-400.0,0.00022191,2]
[385932949,1758137448082,-454.48,0.00022191,2]
[385932951,1758137448091,-463.35,0.00022191,2]
[385932953,1758137448100,-400.0,0.00022191,2]
[385932955,1758137448109,-532.79992949,0.00022191,2]
[385932957,1758137448119,-400.0,0.00022191,2]
[385932959,1758137448128,-400.0,0.00022191,2]
[385932960,1758137448137,-400.0,0.00022191,2]
[385932962,1758137448146,-492.3,0.00022191,2]
[385932964,1758137448155,-677.36,0.00022191,2]
[385932966,1758137448165,-400.0,0.00022191,2]
[385932969,1758137448175,-400.0,0.00022191,2]
[385932971,1758137448184,-413.4,0.00022191,2]
[385932973,1758137448194,-400.0,0.00022191,2]
[385932975,1758137448204,-400.0,0.00022191,2]
[385932977,1758137448213,-400.0,0.00022191,2]
[385932979,1758137448223,-796.26,0.00022191,2]
[385932981,1758137448232,-400.0,0.00022191,2]
[385932983,1758137448242,-400.0,0.00022191,2]
[385932985,1758137448251,-2727.12,0.00022191,2]
[385932987,1758137448260,-400.0,0.00022191,2]
[385932988,1758137448269,-518.36,0.00022191,2]
[385932990,1758137448278,-400.0,0.00022191,2]
[385932992,1758137448288,-469.33,0.00022191,2]
[385932995,1758137448297,-400.0,0.00022191,2]
[385932997,1758137448307,-400.0,0.00022191,2]
[385932999,1758137448316,-400.0,0.00022191,2]
[385933000,1758137448325,-400.0,0.00022191,2]
[385933002,1758137448335,-400.0,0.00022191,2]
[385933005,1758137448345,-400.0,0.00022191,2]
[385933007,1758137448354,-400.0,0.00022191,2]
[385933009,1758137448363,-586.66,0.00022191,2]
[385933011,1758137448373,-430.47,0.00022191,2]
[385933013,1758137448382,-400.0,0.00022191,2]
[385933015,1758137448391,-400.0,0.00022191,2]
[385933017,1758137448400,-526.0,0.000222,2]
[385933018,1758137448409,-250.0,0.00022217,2]
[385933021,1758137448420,-150.0,0.00022217,2]
[385933023,1758137448430,-250.0,0.00022217,2]
[385933025,1758137448440,-2000.0,0.00022217,3]
[385933027,1758137448449,-195.0,0.00022217,2]
[385933029,1758137448458,-344.56657575,0.00022217,2]
[385933031,1758137448468,-250.0,0.00022224,2]
[385933033,1758137448477,-400.0,0.00022272,2]
[385933035,1758137448486,-265.64763818,0.00022272,2]
[385933037,1758137448495,-500.0,0.00022272,2]
[385933039,1758137448505,-308.57812283,0.00022272,2]
[385933041,1758137448514,-548.65458593,0.00022272,2]
[385933043,1758137448522,-400.0,0.00022272,2]
[385933045,1758137448532,-400.0,0.00022272,2]
[385933047,1758137448542,-400.0,0.00022272,2]
[385933049,1758137448550,-400.0,0.00022272,2]
[385933051,1758137448560,-575.48,0.00022272,2]
[385933053,1758137448569,-400.0,0.00022272,2]
[385933055,1758137448578,-400.0,0.00022272,2]
[385933057,1758137448587,-765.76,0.00022272,2]
[385933059,1758137448596,-400.0,0.00022272,2]
[385933061,1758137448606,-400.0,0.00022272,2]
[385933062,1758137448615,-400.0,0.00022272,2]
[385933065,1758137448625,-400.0,0.00022272,2]
[385933067,1758137448634,-400.0,0.00022272,2]
[385933069,1758137448643,-177.139291,0.00022272,2]
[385933071,1758137448653,-244.040939,0.00022272,2]
[385933073,1758137448662,-386.251879,0.00022272,2]
[385933075,1758137448672,-1073.87,0.00022272,2]
[385933077,1758137448681,-400.0,0.00022272,2]
[385933079,1758137448690,-535.0,0.00022272,2]
[385933081,1758137448699,-459.71,0.00022272,2]
[385933083,1758137448708,-400.0,0.00022272,2]
[385933085,1758137448717,-400.0,0.00022272,2]
[385933087,1758137448726,-400.0,0.00022272,2]
[385933089,1758137448735,-400.0,0.00022272,2]
[385933091,1758137448744,-542.92,0.00022272,2]
[385933093,1758137448754,-150.0,0.00022272,2]
[385933095,1758137448764,-400.0,0.00022272,2]
[385933097,1758137448774,-538.28,0.00022272,2]
[385933098,1758137448783,-400.0,0.00022272,2]
[385933100,1758137448792,-400.0,0.00022272,2]
[385933102,1758137448801,-400.0,0.00022272,2]
[385933104,1758137448811,-400.0,0.00022272,2]
[385933106,1758137448822,-476.01,0.00022272,2]
[385933108,1758137448832,-400.0,0.00022272,2]
[385933110,1758137448841,-400.0,0.00022272,2]
[385933112,1758137448850,-980.45,0.00022272,2]
[385933114,1758137448861,-1008.77,0.00022272,2]
[385933116,1758137448870,-400.0,0.00022272,2]
[385933118,1758137448880,-763.58,0.00022272,2]
[385933121,1758137448891,-500.0,0.00022272,2]
[385933123,1758137448900,-430.3221829,0.00022272,2]
[385933124,1758137448909,-400.0,0.00022272,2]
[385933126,1758137448920,-400.0,0.00022272,2]
[385933129,1758137448929,-400.0,0.00022272,2]
[385933131,1758137448938,-1279.58,0.00022272,2]
[385933133,1758137448947,-400.0,0.00022272,2]
[385933135,1758137448956,-400.0,0.00022272,2]
[385933137,1758137448966,-449.94,0.00022272,2]
[385933139,1758137448975,-435.9,0.00022272,2]
[385933140,1758137448985,-400.0,0.00022272,2]
[385933142,1758137448994,-400.0,0.00022272,2]
[385933144,1758137449003,-505.47,0.00022272,2]
[385933146,1758137449012,-551.94,0.00022272,2]
[385933148,1758137449022,-400.0,0.00022272,2]
[385933150,1758137449031,-400.0,0.00022272,2]
[385933152,1758137449040,-400.0,0.00022272,2]
[385933154,1758137449049,-400.0,0.00022272,2]
[385933156,1758137449059,-400.0,0.00022272,2]
[385933158,1758137449068,-400.0,0.00022272,2]
[385933160,1758137449078,-542.84,0.00022272,2]
[385933162,1758137449088,-565.74,0.00022272,2]
[385933164,1758137449098,-400.0,0.00022272,2]
[385933166,1758137449107,-400.0,0.00022272,2]
[385933168,1758137449118,-461.5,0.00022272,2]
[385933171,1758137449127,-400.0,0.00022272,2]
[385933173,1758137449137,-400.0,0.00022272,2]
[385933175,1758137449148,-337.16475037,0.00022272,2]
[385933177,1758137449157,-728.72,0.00022272,2]
[385933179,1758137449167,-1073.76,0.00022272,2]
[385933181,1758137449181,-400.0,0.00022272,2]
[385933183,1758137449190,-400.0,0.00022272,2]
[385933185,1758137449200,-400.0,0.00022272,2]
[385933187,1758137449209,-400.0,0.00022272,2]
[385933189,1758137449219,-400.0,0.00022272,2]
[385933191,1758137449228,-400.0,0.00022272,2]
[385933193,1758137449238,-455.35,0.00022272,2]
[385933195,1758137449249,-400.0,0.00022272,2]
[385933197,1758137449259,-400.0,0.00022272,2]
[385933199,1758137449268,-1019.68,0.00022272,2]
[385933201,1758137449278,-511.63,0.00022272,2]
[385933203,1758137449288,-972.93,0.00022272,2]
[385933205,1758137449297,-400.0,0.00022272,2]
[385933207,1758137449307,-1906.2,0.00022272,2]
[385933209,1758137449316,-400.0,0.00022272,2]
[385933211,1758137449325,-400.0,0.00022272,2]
[385933213,1758137449336,-400.0,0.00022272,2]
[385933215,1758137449346,-7460.96,0.00022272,2]
[385933217,1758137449355,-400.0,0.00022272,2]
[385933219,1758137449364,-400.0,0.00022272,2]
[385933220,1758137449374,-400.0,0.00022272,2]
[385933221,1758137449383,-3359.33,0.00022272,2]
[385933222,1758137449393,-400.0,0.00022272,2]
[385933223,1758137449402,-485.76,0.00022272,2]
[385933224,1758137449411,-400.0,0.00022273,2]
[385933225,1758137449423,-400.0,0.00022273,2]
[385933226,1758137449432,-400.0,0.00022273,2]
[385933227,1758137449442,-400.0,0.00022273,2]
[385933229,1758137449451,-400.0,0.00022273,2]
[385933230,1758137449462,-400.0,0.00022273,2]
[385933232,1758137449472,-499.98,0.00022273,2]
[385933234,1758137449482,-400.0,0.00022273,2]
[385933236,1758137449492,-441.8113313,0.00022273,2]
[385933238,1758137449502,-554.96,0.00022273,2]
[385933240,1758137449512,-400.0,0.00022273,2]
[385933242,1758137449521,-400.0,0.00022273,2]
[385933244,1758137449531,-400.0,0.00022273,2]
[385933246,1758137449541,-400.0,0.00022273,2]
[385933248,1758137449553,-400.0,0.00022273,2]
[385933250,1758137449562,-400.0,0.00022273,2]
[385933252,1758137449572,-400.0,0.00022273,2]
[385933254,1758137449582,-400.0,0.00022273,2]
[385933255,1758137449591,-400.0,0.00022273,2]
[385933256,1758137449601,-400.0,0.00022273,2]
[385933257,1758137449611,-411.22632869,0.00022273,2]
[385933258,1758137449620,-400.0,0.00022273,2]
[385933259,1758137449631,-400.0,0.00022273,2]
[385933260,1758137449641,-400.0,0.00022273,2]
[385933261,1758137449650,-400.0,0.00022273,2]
[385933262,1758137449660,-400.0,0.00022273,2]
[385933263,1758137449672,-400.0,0.00022273,2]
[385933264,1758137449687,-400.0,0.00022273,2]
[385933265,1758137449696,-400.0,0.00022273,2]
[385933266,1758137449706,-400.0,0.00022273,2]
[385933267,1758137449715,-400.0,0.00022273,2]
[385933268,1758137449725,-400.0,0.00022273,2]
[385933269,1758137449735,-400.0,0.00022273,2]
[385933270,1758137449744,-400.0,0.00022273,2]
[385933271,1758137449753,-400.0,0.00022273,2]
[385933272,1758137449763,-400.0,0.00022273,2]
[385933273,1758137449772,-400.0,0.00022273,2]
[385933274,1758137449782,-400.0,0.00022273,2]
[385933275,1758137449791,-400.0,0.00022273,2]
[385933276,1758137449801,-400.0,0.00022273,2]
[385933277,1758137449810,-400.0,0.00022273,2]
[385933278,1758137449822,-400.0,0.00022273,2]
[385933279,1758137449831,-400.0,0.00022273,2]
[385933280,1758137449841,-400.0,0.00022273,2]
[385933281,1758137449850,-400.0,0.00022273,2]
[385933282,1758137449860,-271.85014258,0.00022273,2]
[385933283,1758137449869,-400.0,0.00022273,2]
[385933284,1758137449878,-400.0,0.00022273,2]
[385933285,1758137449888,-400.0,0.00022273,2]
[385933286,1758137449897,-400.0,0.00022273,2]
[385933287,1758137449907,-400.0,0.00022273,2]
[385933288,1758137449916,-400.0,0.00022273,2]
[385933289,1758137449929,-400.0,0.00022273,2]
[385933290,1758137449938,-422.78,0.00022273,2]
[385933291,1758137449947,-400.0,0.00022273,2]
[385933292,1758137449956,-711.68,0.00022273,2]
[385933293,1758137449965,-400.0,0.00022273,2]
[385933294,1758137449974,-501.32,0.00022273,2]
[385933295,1758137449983,-400.0,0.00022273,2]
[385933296,1758137449992,-400.0,0.00022273,2]
[385933297,1758137450001,-400.0,0.00022273,2]
[385933298,1758137450010,-400.0,0.00022273,2]
[385933299,1758137450020,-400.0,0.00022273,2]
[385933300,1758137450029,-400.0,0.00022273,2]
[385933301,1758137450038,-400.0,0.00022273,2]
[385933302,1758137450047,-400.0,0.00022273,2]
[385933303,1758137450056,-437.82,0.00022273,2]
[385933304,1758137450066,-400.0,0.00022273,2]
[385933305,1758137450075,-400.0,0.00022273,2]
[385933306,1758137450084,-400.0,0.00022273,2]
[385933307,1758137450093,-400.0,0.00022273,2]
[385933308,1758137450102,-400.0,0.00022273,2]
[385933309,1758137450111,-400.0,0.00022273,2]
[385933310,1758137450120,-400.0,0.00022273,2]
[385933311,1758137450130,-400.0,0.00022273,2]
[385933312,1758137450139,-400.0,0.00022273,2]
[385933313,1758137450148,-400.0,0.00022273,2]
[385933314,1758137450157,-400.0,0.00022273,2]
[385933315,1758137450166,-468.8,0.00022273,2]
[385933316,1758137450181,-400.0,0.00022273,2]
[385933317,1758137450191,-939.92,0.00022273,2]
[385933318,1758137450200,-400.0,0.00022273,2]
[385933319,1758137450209,-462.35,0.00022273,2]
[385933320,1758137450219,-1108.83,0.00022273,2]
[385933321,1758137450228,-587.56,0.00022273,2]
[385933322,1758137450238,-820.14,0.00022273,2]
[385933323,1758137450248,-1781.73,0.00022273,2]
[385933324,1758137450257,-564.62,0.00022273,2]
[385933325,1758137450266,-400.0,0.00022273,2]
[385933326,1758137450276,-400.0,0.00022273,2]
[385933327,1758137450286,-454.8,0.00022273,2]
[385933328,1758137450295,-400.0,0.00022273,2]
[385933329,1758137450303,-400.0,0.00022273,2]
[385933330,1758137450313,-419.62,0.00022273,2]
[385933331,1758137450322,-514.56,0.00022273,2]
[385933332,1758137450331,-471.22,0.00022273,2]
[385933333,1758137450341,-443.87,0.00022273,2]
[385933334,1758137450350,-719.15,0.00022273,2]
[385933335,1758137450359,-411.01,0.00022273,2]
[385933336,1758137450369,-546.46,0.00022273,2]
[385933337,1758137450378,-400.0,0.00022273,2]
[385933338,1758137450387,-769.33,0.00022273,2]
[385933339,1758137450396,-450.77,0.00022273,2]
[385933340,1758137450405,-1734.54,0.00022273,2]
[385933341,1758137450414,-1923.29,0.00022273,2]
[385933342,1758137450425,-400.0,0.00022273,2]
[385933343,1758137450435,-400.0,0.00022273,2]
[385933344,1758137450444,-411.58,0.00022273,2]
[385933345,1758137450453,-431.89,0.00022273,2]
[385933346,1758137450462,-733.95,0.00022273,2]
[385933347,1758137450472,-400.0,0.00022273,2]
[385933348,1758137450481,-3546.51,0.00022273,2]
[385933349,1758137450490,-935.65,0.00022273,2]
[385933350,1758137450500,-957.93,0.00022273,2]
[385933351,1758137450508,-400.0,0.00022273,2]
[385933352,1758137450517,-405.32,0.00022273,2]
[385933353,1758137450526,-489.76,0.00022273,2]
[385933354,1758137450536,-535.24,0.00022273,2]
[385933355,1758137450545,-400.0,0.00022273,2]
[385933356,1758137450555,-491.18,0.00022273,2]
[385933357,1758137450564,-780.29,0.00022273,2]
[385933358,1758137450575,-400.0,0.00022273,2]
[385933359,1758137450584,-647.97,0.00022273,2]
[385933360,1758137450593,-1559.37,0.00022273,2]
[385933361,1758137450602,-737.61,0.00022273,2]
[385933362,1758137450611,-1000.0,0.00022273,2]
[385933363,1758137450621,-568.29,0.00022273,2]
[385933364,1758137450630,-976.6,0.00022273,2]
[385933365,1758137450640,-777.44,0.00022273,2]
[385933366,1758137450650,-311.56793063,0.00022273,2]
[385933367,1758137450659,-942.44,0.00022273,2]
[385933368,1758137450669,-876.26,0.00022273,2]
[385933369,1758137450680,-513.48,0.00022273,2]
[385933370,1758137450690,-680.77,0.00022273,2]
[385933371,1758137450699,-492.09,0.00022273,2]
[385933372,1758137450708,-883.58,0.00022273,2]
[385933373,1758137450717,-400.0,0.00022273,2]
[385933374,1758137450727,-400.0,0.00022273,2]
[385933375,1758137450736,-512.24,0.00022273,2]
[385933376,1758137450746,-400.0,0.00022273,2]
[385933377,1758137450755,-3218.82,0.00022273,2]
[385933378,1758137450765,-300.0,0.00022323,2]
[385933379,1758137450774,-2500.0,0.00022323,2]
[385933380,1758137450784,-2500.0,0.00022323,2]
[385933381,1758137450793,-2374.0,0.00022323,2]
[385933382,1758137450803,-516.07479255,0.00022323,3]
[385933383,1758137450815,-163.43,0.0002238,2]
[385933384,1758137450827,-213.96,0.00022431,2]
[385933385,1758137450836,-400.0,0.00022445,2]
[385933386,1758137450845,-400.0,0.00022446,2]
[385933387,1758137450854,-476.42355515,0.00022446,2]
[385933388,1758137450865,-400.0,0.00022446,2]
[385933389,1758137450874,-400.0,0.00022446,2]
[385933390,1758137450883,-400.0,0.00022446,2]
[385933391,1758137450894,-400.0,0.00022446,2]
[385933392,1758137450904,-400.0,0.00022446,2]
[385933393,1758137450913,-400.0,0.00022446,2]
[385933394,1758137450924,-400.0,0.00022446,2]
[385933395,1758137450933,-488.59,0.00022446,2]
[385933396,1758137450942,-400.0,0.00022446,2]
[385933397,1758137450951,-400.0,0.00022446,2]
[385933398,1758137450960,-400.0,0.00022446,2]
[385933399,1758137450970,-400.0,0.00022446,2]
[385933400,1758137450980,-435.76,0.00022446,2]
[385933401,1758137450989,-400.0,0.00022446,2]
[385933402,1758137450999,-400.0,0.00022446,2]
[385933403,1758137451008,-400.0,0.00022446,2]
[385933404,1758137451017,-400.0,0.00022446,2]
[385933405,1758137451026,-400.0,0.00022446,2]
[385933406,1758137451035,-400.0,0.00022446,2]
[385933407,1758137451045,-400.0,0.00022446,2]
[385933408,1758137451054,-400.0,0.00022446,2]
[385933409,1758137451063,-400.0,0.00022446,2]
[385933410,1758137451073,-400.0,0.00022446,2]
[385933411,1758137451082,-400.0,0.00022446,2]
[385933412,1758137451092,-459.41597118,0.00022446,2]
[385933413,1758137451101,-415.91,0.00022446,2]
[385933414,1758137451110,-400.0,0.00022446,2]
[385933415,1758137451119,-400.0,0.00022446,2]
[385933416,1758137451129,-400.0,0.00022446,2]
[385933417,1758137451137,-400.0,0.00022446,2]
[385933418,1758137451262,-400.0,0.00022446,2]
[385933419,1758137451274,-400.0,0.00022446,2]
[385933420,1758137451284,-400.0,0.00022446,2]
[385933421,1758137451293,-400.0,0.00022446,2]